bitfinex-derivatives/quotes_SOLF0:USTF0_20250831
["timestamp","ask_amount","ask_price","bid_price","bid_amount"]
[1756605404630,5.57,206.27,206.25,4.58491328]
[1756605404830,2.0959151,206.28,206.23,7.56]
[1756605405033,5.57,206.27,206.24,4.58491328]
[1756605405333,5.57,206.27,206.25,4.58491328]
[1756605405532,2.0959151,206.28,206.23,7.56]
[1756605405732,5.57,206.27,206.24,4.58550036]
[1756605405933,5.57,206.27,206.25,4.58550036]
[1756605406135,2.0959151,206.28,206.23,7.56]
[1756605406332,5.57,206.27,206.24,4.5852949]
[1756605406538,2.0959151,206.28,206.25,4.5852949]
[1756605406740,5.57,206.27,206.23,7.56]
[1756605406935,5.57,206.27,206.24,4.58570392]
[1756605407136,5.57,206.27,206.23,7.56]
[1756605407434,5.57,206.27,206.24,4.58570307]
[1756605407627,5.57,206.27,206.25,4.58570307]
[1756605407834,5.57,206.27,206.23,7.56]
[1756605408138,5.57,206.27,206.24,4.58604211]
[1756605408337,5.57,206.27,206.25,4.58604211]
[1756605408539,5.57,206.27,206.23,7.56]
[1756605408740,5.57,206.27,206.24,4.58642844]
[1756605408939,5.57,206.27,206.25,4.58642844]
[1756605409240,5.57,206.27,206.23,7.56]
[1756605409440,5.57,206.27,206.24,4.5869919]
[1756605409735,5.57,206.27,206.25,4.5869919]
[1756605409932,2.0959151,206.28,206.19,7.56]
[1756605410136,7.6659151,206.23,206.2,8.9779497]
[1756605410338,123.18,206.22,206.21,4.58825941]
[1756605410737,123.18,206.22,206.21,4.58862767]
[1756605412141,128.75,206.22,206.21,4.58862767]
[1756605412938,5.57,206.22,206.21,4.58862767]
[1756605413138,46.6,206.22,206.21,4.58862767]
[1756605416042,52.17,206.22,206.21,4.58862767]
[1756605420945,52.17,206.22,206.15,7.56]
[1756605421144,52.17,206.22,206.16,4.59219542]
[1756605421346,46.6,206.22,206.17,4.59219542]
[1756605421648,46.6,206.22,206.18,4.59219542]
[1756605421843,46.6,206.22,206.19,4.59341555]
[1756605422051,5.58,206.21,206.2,4.59341555]
[1756605423253,5.58,206.21,206.14,7.56]
[1756605423551,2.0959151,206.18,206.15,12.15276996]
[1756605423751,2.0959151,206.18,206.16,4.59276996]
[1756605424049,2.0959151,206.18,206.17,4.59276996]
[1756605424253,7.6759151,206.18,206.17,4.59276996]
[1756605426551,7.6759151,206.18,206.12,7.56]
[1756605426751,7.6759151,206.15,206.13,4.58061681]
[1756605427051,2.0959151,206.15,206.06,7.56]
[1756605427450,14.12,206.14,206.06,7.56]
[1756605427650,19.7,206.14,206.06,7.56]
[1756605428550,2.0959151,206.2,206.07,11.4361615]
[1756605428754,63.12,206.21,206.07,11.4361615]
[1756605428755,63.12,206.21,206.08,7.43]
[1756605428953,63.12,206.21,206.1,7.43]
[1756605429247,325.94,206.22,206.12,2.0959151]
[1756605429448,448.98,206.22,206.13,7.43]
[1756605432357,123.04,206.22,206.13,7.43]
[1756605434956,130.7159151,206.22,206.13,7.43]
[1756605435458,5.58,206.21,206.13,7.43]
[1756605435655,2.0959151,206.19,206.13,7.43]
[1756605435859,5.58,206.18,206.09,7.43]
[1756605436253,5.58,206.18,206.09,11.4361615]
[1756605437159,7.6759151,206.18,206.1,7.43]
[1756605438758,7.6759151,206.18,206.11,4.4784021]
[1756605438965,5.58,206.18,206.12,4.4784021]
[1756605439153,5.58,206.18,206.14,7.43]
[1756605439357,5.58,206.18,206.15,4.4784021]
[1756605439557,122.94,206.21,206.17,7.43]
[1756605439754,7.6759151,206.24,206.18,4.4784021]
[1756605439960,111.94,206.26,206.2,7.43]
[1756605440261,111.94,206.26,206.21,4.4784021]
[1756605440462,111.94,206.26,206.23,7.43]
[1756605440652,111.94,206.26,206.24,4.4784021]
[1756605440851,111.94,206.26,206.25,4.4784021]
[1756605441761,117.52,206.26,206.19,7.43]
[1756605441960,117.52,206.26,206.2,4.47515739]
[1756605442159,117.52,206.26,206.21,11.90515739]
[1756605442359,5.55,206.25,206.22,4.47503191]
[1756605442656,5.55,206.25,206.23,4.47503191]
[1756605442858,5.55,206.25,206.24,4.47503191]
[1756605444251,325.96,206.3,206.24,4.47503191]
[1756605444453,5.55,206.29,206.25,11.90503191]
[1756605444661,5.55,206.29,206.26,4.47503191]
[1756605444856,5.55,206.29,206.27,4.47503191]
[1756605445064,5.55,206.29,206.28,4.47503191]
[1756605445263,325.96,206.3,206.28,4.47503191]
[1756605445465,325.96,206.3,206.2,7.43]
[1756605445665,325.96,206.3,206.22,7.43]
[1756605445864,325.96,206.3,206.23,4.47357088]
[1756605446064,325.96,206.3,206.24,4.47357088]
[1756605446263,331.51,206.3,206.25,11.90357088]
[1756605446463,331.51,206.3,206.26,4.47357088]
[1756605446664,331.51,206.3,206.27,4.47357088]
[1756605446864,331.51,206.3,206.28,4.47357088]
[1756605447065,331.51,206.3,206.25,7.43]
[1756605447264,331.51,206.3,206.26,4.47295075]
[1756605447466,331.51,206.3,206.27,4.47295075]
[1756605447666,331.51,206.3,206.28,4.47295075]
[1756605447864,331.51,206.3,206.2,7.43]
[1756605448065,331.51,206.3,206.22,7.43]
[1756605448365,331.51,206.3,206.23,4.47209083]
[1756605448563,331.51,206.3,206.24,4.47209083]
[1756605448764,5.55,206.29,206.25,11.90209083]
[1756605449059,5.55,206.29,206.26,4.47209083]
[1756605449260,5.55,206.29,206.27,4.47209083]
[1756605449457,5.55,206.29,206.28,4.47209083]
[1756605450161,325.96,206.3,206.28,4.47209083]
[1756605450365,325.96,206.3,206.2,7.43]
[1756605450564,325.96,206.3,206.22,9.5259151]
[1756605450765,325.96,206.3,206.24,7.43]
[1756605450963,325.96,206.3,206.25,4.46995193]
[1756605451266,325.96,206.3,206.27,7.43]
[1756605451463,325.96,206.3,206.28,4.46995193]
[1756605451662,325.96,206.3,206.27,7.43]
[1756605451859,325.96,206.3,206.28,4.46919558]
[1756605452065,325.96,206.3,206.27,7.43]
[1756605452266,325.96,206.3,206.28,4.46919558]
[1756605452468,325.96,206.3,206.27,7.43]
[1756605452768,325.96,206.3,206.28,4.46851302]
[1756605452970,325.96,206.3,206.27,7.43]
[1756605453270,325.96,206.3,206.28,4.46851302]
[1756605453464,325.96,206.3,206.29,4.46851302]
[1756605453861,331.51,206.3,206.29,4.46851302]
[1756605456173,5.55,206.3,206.29,4.47324318]
[1756605458176,5.55,206.3,206.24,7.43]
[1756605458376,122.74,206.29,206.25,4.46877885]
[1756605458676,122.74,206.29,206.21,2.0959151]
[1756605458677,122.74,206.29,206.26,4.46877885]
[1756605458872,122.74,206.29,206.21,2.0959151]
[1756605458873,122.74,206.29,206.27,11.93877885]
[1756605459177,122.74,206.29,206.21,2.0959151]
[1756605459476,122.74,206.29,206.22,7.47]
[1756605459877,5.57,206.32,206.22,7.47]
[1756605460074,5.57,206.39,206.28,7.47]
[1756605460278,11.06,206.38,206.28,7.47]
[1756605464375,5.57,206.37,206.28,7.47]
[1756605468180,0.03304602,206.35,206.28,7.47]
[1756605473093,0.03304602,206.35,206.29,2.0959151]
[1756605473294,0.03304602,206.35,206.3,7.47]
[1756605474283,0.03304602,206.35,206.3,9.5659151]
[1756605474587,0.03304602,206.35,206.3,2.0959151]
[1756605474783,0.03304602,206.35,206.31,7.47]
[1756605477699,0.03304602,206.35,206.3,2.0959151]
[1756605478694,0.03304602,206.35,206.31,7.47]
[1756605478895,0.03304602,206.35,206.3,2.0959151]
[1756605479095,0.03304602,206.35,206.31,7.47]
[1756605479696,0.03304602,206.35,206.3,2.0959151]
[1756605479997,0.03304602,206.35,206.31,7.47]
[1756605480198,0.03304602,206.35,206.3,2.0959151]
[1756605480393,0.03304602,206.35,206.31,7.47]
[1756605481404,0.03304602,206.35,206.33,2.0959151]
[1756605481593,0.03304602,206.35,206.34,7.47]
[1756605482498,5.57,206.45,206.34,7.95]
[1756605482698,40.76,206.44,206.35,2.0959151]
[1756605482902,40.76,206.44,206.36,7.47]
[1756605483599,40.76,206.44,206.37,4.38398547]
[1756605483799,40.76,206.44,206.33,3.97660028]
[1756605483800,40.76,206.44,206.38,11.89029658]
[1756605484000,5.6,206.43,206.39,11.85398547]
[1756605484200,5.6,206.43,206.4,4.38679138]
[1756605484403,5.6,206.43,206.41,4.38679138]
[1756605484599,5.6,206.43,206.39,7.47]
[1756605484805,5.6,206.43,206.4,4.38514962]
[1756605485008,5.6,206.43,206.41,4.38514962]
[1756605485195,5.6,206.43,206.39,7.47]
[1756605485400,5.6,206.43,206.4,4.38446115]
[1756605485601,5.6,206.43,206.41,4.38446115]
[1756605485796,2.0959151,206.51,206.39,9.5659151]
[1756605486002,5.6,206.49,206.4,4.38369266]
[1756605486201,5.6,206.49,206.41,4.38369266]
[1756605486402,5.6,206.49,206.42,4.38369266]
[1756605486599,5.6,206.49,206.42,0.03179547]
[1756605492308,122.32,206.48,206.42,0.03179547]
[1756605493511,5.59,206.47,206.42,0.03179547]
[1756605493814,122.32,206.48,206.42,0.03179547]
[1756605494604,2.0959151,206.52,206.42,7.23179547]
[1756605494805,5.59,206.48,206.42,7.23179547]
[1756605496307,5.59,206.48,206.44,7.2]
[1756605496512,5.59,206.5,206.44,7.2]
[1756605499506,122.24,206.49,206.44,7.2]
[1756605499704,5.59,206.48,206.42,0.03179547]
[1756605502217,325.68,206.53,206.44,7.2]
[1756605502218,5.61,206.52,206.44,7.2]
[1756605502421,127.81,206.52,206.46,7.2]
[1756605502716,127.79,206.51,206.47,11.5853302]
[1756605502917,127.79,206.51,206.47,7.2322247]
[1756605503920,5.61,206.5,206.47,7.2322247]
[1756605505915,5.61,206.5,206.47,0.0322247]
[1756605506118,122.18,206.51,206.47,0.0322247]
[1756605506615,5.61,206.5,206.47,0.0322247]
[1756605507617,5.61,206.5,206.47,7.2322247]
[1756605507920,127.75,206.5,206.47,7.2322247]
[1756605511125,5.61,206.49,206.47,0.0322247]
[1756605511725,122.14,206.5,206.47,0.0322247]
[1756605511925,5.61,206.49,206.47,0.0322247]
[1756605512431,122.14,206.5,206.47,0.0322247]
[1756605512624,5.61,206.49,206.47,0.0322247]
[1756605512822,122.14,206.5,206.47,0.0322247]
[1756605513522,5.61,206.55,206.48,7.2]
[1756605513724,5.61,206.55,206.49,4.38794983]
[1756605513725,12.23,206.55,206.49,4.38794983]
[1756605513931,5.61,206.54,206.5,11.58794983]
[1756605514128,5.61,206.54,206.51,4.38794983]
[1756605514330,5.61,206.54,206.52,8.78752495]
[1756605514629,5.61,206.54,206.53,4.38794983]
[1756605515230,5.61,206.54,206.5,7.2343158]
[1756605515731,5.61,206.54,206.51,4.46409101]
[1756605516028,5.61,206.54,206.52,4.46409101]
[1756605516221,5.61,206.54,206.53,4.46409101]
[1756605517130,5.61,206.54,206.5,7.2343158]
[1756605517429,5.61,206.54,206.51,4.43447161]
[1756605517628,5.61,206.54,206.52,4.43447161]
[1756605517828,5.61,206.54,206.5,7.2343158]
[1756605518030,5.61,206.54,206.51,4.43386912]
[1756605518329,5.61,206.54,206.52,4.43386912]
[1756605518530,5.61,206.54,206.5,7.2343158]
[1756605518725,5.56,206.54,206.51,4.43365467]
[1756605518928,5.56,206.54,206.5,0.0343158]
[1756605518929,7.6559151,206.54,206.5,0.0343158]
[1756605519823,2.0959151,206.51,206.5,0.0343158]
[1756605520029,7.6559151,206.51,206.5,0.0343158]
[1756605521534,129.6559151,206.51,206.5,0.0343158]
[1756605522729,127.56,206.51,206.5,0.0343158]
[1756605523035,129.6559151,206.51,206.5,0.0343158]
[1756605523333,5.53,206.5,206.39,7.49]
[1756605523533,124.0959151,206.51,206.39,7.49]
[1756605524330,5.53,206.5,206.39,7.49]
[1756605524530,5.53,206.5,206.4,2.0959151]
[1756605524735,121.98,206.49,206.41,11.46409651]
[1756605524935,121.98,206.49,206.44,7.49]
[1756605525435,5.53,206.57,206.44,7.49]
[1756605525737,121.98,206.56,206.47,7.49]
[1756605529238,121.96,206.55,206.47,7.49]
[1756605529639,5.53,206.54,206.47,7.49]
[1756605530638,121.96,206.55,206.47,7.49]
[1756605531639,121.92,206.55,206.47,7.49]
[1756605532142,5.53,206.54,206.47,7.49]
[1756605532437,5.53,206.54,206.45,2.0959151]
[1756605532936,5.53,206.54,206.46,7.49]
[1756605533132,121.92,206.53,206.46,7.49]
[1756605533338,5.53,206.54,206.46,7.49]
[1756605533645,121.92,206.53,206.46,7.49]
[1756605534645,121.9,206.53,206.46,7.49]
[1756605538740,5.53,206.52,206.46,7.49]
[1756605539246,5.53,206.52,206.43,7.49]
[1756605539448,121.9,206.53,206.43,7.49]
[1756605539744,5.53,206.51,206.4,3.97409651]
[1756605540542,2.0959151,206.49,206.4,3.97409651]
[1756605540750,5.53,206.48,206.39,7.49]
[1756605540943,123.9559151,206.49,206.39,7.49]
[1756605541147,5.53,206.48,206.39,7.49]
[1756605541349,123.9559151,206.49,206.39,7.49]
[1756605541947,5.53,206.48,206.39,7.49]
[1756605542142,5.53,206.55,206.43,7.49]
[1756605542343,5.53,206.53,206.44,7.49]
[1756605542546,5.53,206.53,206.46,7.49]
[1756605542942,13.45,206.56,206.46,7.49]
[1756605547345,13.45,206.56,206.46,11.46409651]
[1756605547945,13.45,206.56,206.46,7.49]
[1756605550348,13.45,206.56,206.46,11.46409651]
[1756605550748,13.45,206.56,206.47,7.18]
[1756605553650,5.53,206.56,206.47,7.18]
[1756605555550,114.3,206.58,206.47,7.18]
[1756605555745,2.0959151,206.57,206.46,3.97409651]
[1756605556048,5.54,206.56,206.45,2.0959151]
[1756605558248,2.0959151,206.57,206.44,11.15409651]
[1756605558456,5.54,206.56,206.45,3.97409651]
[1756605559751,2.0959151,206.57,206.44,13.25001161]
[1756605561258,5.54,206.56,206.44,13.25001161]
[1756605561453,2.0959151,206.57,206.44,13.25001161]
[1756605561657,2.0959151,206.57,206.45,3.97409651]
[1756605561857,5.54,206.55,206.46,7.18]
[1756605562255,33.84,206.56,206.46,7.18]
[1756605562554,5.53,206.55,206.46,7.18]
[1756605562754,33.84,206.56,206.46,7.18]
[1756605563156,5.53,206.55,206.46,7.18]
[1756605563358,5.53,206.54,206.46,7.18]
[1756605566861,107.11,206.55,206.46,7.18]
[1756605567154,107.11,206.55,206.47,9.2759151]
[1756605567359,107.11,206.55,206.48,7.18]
[1756605568462,5.53,206.55,206.48,7.18]
[1756605568859,5.53,206.55,206.49,7.18]
[1756605572767,5.53,206.55,206.49,3.97409651]
[1756605573161,5.53,206.55,206.5,7.18]
[1756605573964,5.53,206.55,206.49,3.97409651]
[1756605574563,5.53,206.55,206.5,7.18]
[1756605574761,5.53,206.55,206.49,3.97409651]
[1756605575362,5.53,206.55,206.5,7.18]
[1756605575562,5.53,206.55,206.49,3.97409651]
[1756605575767,5.53,206.55,206.5,7.18]
[1756605576166,5.53,206.55,206.49,3.97409651]
[1756605576362,5.53,206.55,206.48,6.07001161]
[1756605576668,5.53,206.55,206.49,7.18]
[1756605577068,5.53,206.55,206.49,11.15409651]
[1756605577264,5.53,206.55,206.49,7.18]
[1756605579274,121.6,206.59,206.48,3.97409651]
[1756605579275,2.0959151,206.58,206.48,3.97409651]
[1756605579567,5.54,206.57,206.48,3.97409651]
[1756605580059,2.0959151,206.58,206.48,3.97409651]
[1756605580060,2.0959151,206.58,206.48,11.42409651]
[1756605580272,5.54,206.57,206.48,7.45]
[1756605580466,5.54,206.57,206.49,7.45]
[1756605581268,2.0959151,206.58,206.49,7.45]
[1756605582074,5.54,206.57,206.49,7.45]
[1756605583676,5.54,206.57,206.49,11.42409651]
[1756605584870,5.54,206.57,206.49,7.45]
[1756605586573,5.54,206.57,206.49,11.42409651]
[1756605587378,121.56,206.58,206.49,11.42409651]
[1756605587584,5.54,206.57,206.49,11.42409651]
[1756605587774,121.56,206.58,206.49,11.42409651]
[1756605587979,5.54,206.57,206.49,7.45]
[1756605588577,2.0959151,206.6,206.49,7.45]
[1756605588776,121.52,206.59,206.49,7.45]
[1756605588977,5.54,206.58,206.49,7.45]
[1756605589278,121.52,206.59,206.49,7.45]
[1756605589680,5.54,206.56,206.47,3.97409651]
[1756605589879,2.0959151,206.57,206.47,7.45]
[1756605590378,5.54,206.56,206.47,7.45]
[1756605590982,2.0959151,206.57,206.47,7.45]
[1756605591175,5.54,206.56,206.47,7.45]
[1756605591380,2.0959151,206.57,206.47,7.45]
[1756605592280,5.54,206.56,206.47,7.45]
[1756605592481,2.0959151,206.57,206.47,7.45]
[1756605593082,5.54,206.47,206.41,11.42409651]
[1756605593281,127.04,206.47,206.41,7.45]
[1756605594189,2.46589145,206.46,206.41,7.45]
[1756605594389,5.54,206.44,206.41,7.45]
[1756605594579,2.46589145,206.43,206.41,7.45]
[1756605594887,2.46589145,206.42,206.41,7.45]
[1756605599794,2.4619471,206.42,206.41,7.45]
[1756605601091,5.54,206.41,206.38,7.45]
[1756605601292,2.0959151,206.45,206.33,5.3484824]
[1756605601293,5.54,206.38,206.33,7.45]
[1756605601493,2.4619471,206.37,206.28,3.97409651]
[1756605601699,2.4619471,206.36,206.29,7.45]
[1756605601897,2.4619471,206.35,206.29,7.45]
[1756605602097,2.4619471,206.34,206.29,7.45]
[1756605602295,2.4619471,206.33,206.31,11.42409651]
[1756605602496,27.1,206.42,206.32,7.45]
[1756605602795,5.54,206.4,206.32,7.45]
[1756605602998,2.45766605,206.39,206.32,7.45]
[1756605603199,2.45766605,206.38,206.32,7.45]
[1756605603399,2.45766605,206.37,206.32,7.45]
[1756605603594,2.45766605,206.36,206.32,7.45]
[1756605603799,2.45766605,206.35,206.32,7.45]
[1756605604099,8.52,206.43,206.35,7.45]
[1756605604296,2.0959151,206.47,206.35,7.45]
[1756605604599,2.0959151,206.47,206.38,7.45]
[1756605604600,30.48,206.46,206.38,7.45]
[1756605605602,7.54,206.47,206.38,7.45]
[1756605605800,2.0959151,206.5,206.38,7.45]
[1756605606005,39.8159151,206.5,206.38,7.45]
[1756605606201,37.72,206.5,206.41,7.45]
[1756605606699,9.6359151,206.5,206.41,7.45]
[1756605606899,7.54,206.48,206.41,7.45]
[1756605607095,2.0959151,206.47,206.37,7.45]
[1756605607403,7.54,206.46,206.37,7.45]
[1756605607701,7.54,206.46,206.38,7.62]
[1756605611508,7.54,206.46,206.35,3.97409651]
[1756605611509,2.0959151,206.52,206.41,7.62]
[1756605611805,80.06,206.51,206.41,7.62]
[1756605612004,7.62,206.51,206.43,2.0959151]
[1756605612205,7.62,206.51,206.44,7.62]
[1756605612901,121.42,206.53,206.44,7.62]
[1756605613106,7.62,206.53,206.44,7.62]
[1756605615914,2.39208199,206.52,206.44,7.62]
[1756605616112,2.39208199,206.51,206.45,2.0959151]
[1756605616413,2.39208199,206.5,206.46,7.62]
[1756605616614,2.39208199,206.49,206.45,2.0959151]
[1756605616808,2.39208199,206.48,206.46,7.62]
[1756605617014,2.39208199,206.47,206.46,7.62]
[1756605617714,2.39208199,206.47,206.46,8.1]
[1756605619611,7.62,206.53,206.46,8.1]
[1756605619817,2.39198916,206.52,206.46,7.62]
[1756605620108,7.62,206.5,206.43,3.97409651]
[1756605620308,2.39198916,206.49,206.43,7.62]
[1756605620513,7.62,206.5,206.42,7.62]
[1756605620514,2.39198916,206.48,206.42,7.62]
[1756605620809,2.39198916,206.47,206.42,7.62]
[1756605621019,2.39198916,206.46,206.41,2.0959151]
[1756605621211,10.01198916,206.45,206.38,3.97409651]
[1756605621412,2.39198916,206.44,206.37,6.07001161]
[1756605621715,2.39198916,206.43,206.37,6.07001161]
[1756605621910,2.39198916,206.42,206.37,6.07001161]
[1756605622116,2.39198916,206.41,206.38,7.62]
[1756605622310,2.39198916,206.4,206.37,6.07001161]
[1756605622517,2.39198916,206.39,206.38,7.62]
[1756605623416,2.39198916,206.39,206.38,71.15844967]
[1756605623612,2.39198916,206.39,206.38,70.67844967]
[1756605626516,7.62,206.52,206.39,7.62]
[1756605626820,7.62,206.52,206.44,7.62]
[1756605627022,7.62,206.52,206.43,2.0959151]
[1756605627023,7.62,206.63,206.49,2.0959151]
[1756605627222,3.52993994,206.62,206.56,7.62]
[1756605627415,7.62,206.63,206.52,9.7159151]
[1756605628016,7.62,206.63,206.52,7.62]
[1756605628222,7.62,206.63,206.53,2.0959151]
[1756605629319,7.62,206.63,206.52,7.62]
[1756605629524,7.62,206.63,206.52,9.7159151]
[1756605631116,7.62,206.65,206.52,9.7159151]
[1756605631316,7.62,206.62,206.52,9.7159151]
[1756605631521,7.62,206.62,206.52,7.62]
[1756605633725,2.0959151,206.69,206.47,3.98073359]
[1756605633726,7.62,206.69,206.53,2.0959151]
[1756605634021,7.62,206.69,206.57,2.0959151]
[1756605634022,18.16,206.69,206.57,2.0959151]
[1756605634228,22.36,206.72,206.6,7.62]
[1756605634425,22.36,206.72,206.62,2.0959151]
[1756605634720,22.36,206.72,206.61,2.0959151]
[1756605634924,22.36,206.72,206.62,7.62]
[1756605635523,22.97110823,206.76,206.62,7.62]
[1756605635732,73.6,206.75,206.62,7.62]
[1756605636024,7.62,206.73,206.62,7.62]
[1756605636418,2.0959151,206.68,206.58,7.62]
[1756605637322,7.62,206.68,206.58,7.62]
[1756605638123,17.18,206.67,206.58,7.62]
[1756605638330,7.61,206.66,206.58,7.62]
[1756605638534,2.32884111,206.65,206.58,7.62]
[1756605638829,2.32884111,206.64,206.58,7.62]
[1756605639030,9.93884111,206.63,206.58,7.62]
[1756605639229,2.32884111,206.62,206.58,7.62]
[1756605639434,2.32884111,206.61,206.58,7.62]
[1756605639635,2.32884111,206.6,206.58,7.62]
[1756605639836,2.32884111,206.59,206.58,7.62]
[1756605640529,2.32884111,206.59,206.52,7.41]
[1756605640735,2.32884111,206.58,206.52,7.41]
[1756605640934,2.32884111,206.57,206.5,7.41]
[1756605641126,2.32884111,206.56,206.5,7.41]
[1756605641332,7.61,206.63,206.5,7.41]
[1756605641527,2.32788818,206.62,206.5,7.41]
[1756605641732,2.32788818,206.61,206.5,7.41]
[1756605641937,2.32788818,206.6,206.5,7.41]
[1756605642138,2.32788818,206.59,206.5,7.41]
[1756605642437,2.32788818,206.58,206.5,7.41]
[1756605642638,2.32788818,206.57,206.5,7.41]
[1756605642839,2.32788818,206.56,206.5,7.41]
[1756605643037,2.32788818,206.55,206.5,7.41]
[1756605643337,7.61,206.63,206.54,7.41]
[1756605643539,2.32761628,206.62,206.54,7.41]
[1756605643837,2.32761628,206.61,206.54,7.41]
[1756605644040,2.32761628,206.6,206.54,7.41]
[1756605644241,2.32761628,206.59,206.53,10.95270315]
[1756605644441,2.32761628,206.58,206.54,7.41]
[1756605644641,2.32761628,206.57,206.54,7.41]
[1756605644847,2.32761628,206.56,206.54,7.41]
[1756605645039,2.32761628,206.55,206.5,7.41]
[1756605645345,2.32774863,206.54,206.47,7.41]
[1756605645542,2.32774863,206.53,206.47,7.41]
[1756605645740,7.61,206.6,206.47,7.41]
[1756605646045,7.61,206.58,206.47,7.41]
[1756605646240,2.32791134,206.57,206.47,7.41]
[1756605646445,2.32791134,206.56,206.47,7.41]
[1756605646644,2.32791134,206.55,206.47,7.41]
[1756605646841,2.32791134,206.54,206.47,7.41]
[1756605647141,2.32791134,206.53,206.47,7.41]
[1756605647336,2.32791134,206.53,206.42,3.54270315]
[1756605647337,2.32791134,206.52,206.43,7.41]
[1756605647534,2.32791134,206.51,206.43,7.41]
[1756605647740,2.32791134,206.5,206.43,7.41]
[1756605648045,2.32791134,206.49,206.43,7.41]
[1756605648347,2.32791134,206.48,206.42,3.54270315]
[1756605648546,2.33204647,206.47,206.43,7.41]
[1756605648736,7.61,206.55,206.43,7.41]
[1756605648940,2.33207266,206.54,206.43,7.41]
[1756605649249,2.33207266,206.53,206.43,7.41]
[1756605649544,2.33207266,206.52,206.43,7.41]
[1756605649744,2.33207266,206.51,206.43,7.41]
[1756605649943,2.33207266,206.5,206.43,7.41]
[1756605650145,2.33207266,206.49,206.43,7.41]
[1756605650345,2.33207266,206.48,206.42,3.54270315]
[1756605650538,2.33207266,206.47,206.42,3.54270315]
[1756605650737,7.61,206.55,206.43,7.41]
[1756605650936,2.33343743,206.54,206.43,7.41]
[1756605651146,2.33343743,206.53,206.43,7.41]
[1756605651347,2.33343743,206.52,206.43,7.41]
[1756605651544,2.33343743,206.51,206.43,7.41]
[1756605651743,2.33343743,206.5,206.47,7.41]
[1756605651950,2.33343743,206.49,206.47,7.41]
[1756605652146,7.61,206.59,206.47,7.41]
[1756605652348,2.33388381,206.58,206.51,7.41]
[1756605652548,2.33388381,206.57,206.51,7.41]
[1756605652748,2.33388381,206.56,206.51,7.41]
[1756605652948,2.33388381,206.55,206.5,3.54270315]
[1756605653149,2.33388381,206.54,206.51,7.41]
[1756605653345,2.33388381,206.53,206.5,3.54270315]
[1756605653550,7.61,206.61,206.51,7.41]
[1756605661356,7.61,206.61,206.54,7.41]
[1756605661660,121.26,206.64,206.57,7.41]
[1756605661853,7.61,206.65,206.57,7.41]
[1756605663156,7.61,206.65,206.48,5.3484824]
[1756605663157,7.61,206.65,206.52,7.41]
[1756605663364,7.61,206.65,206.53,2.08779644]
[1756605664260,7.61,206.65,206.54,7.41]
[1756605664458,128.87,206.65,206.54,7.41]
[1756605664759,128.87,206.65,206.56,2.08779644]
[1756605665160,7.61,206.65,206.56,2.08779644]
[1756605665562,7.61,206.65,206.55,2.08779644]
[1756605669769,121.24,206.64,206.55,2.08779644]
[1756605671064,7.2,206.63,206.55,2.08779644]
[1756605673071,7.2,206.63,206.54,7.41]
[1756605673265,7.2,206.63,206.56,2.08779644]
[1756605673467,7.2,206.63,206.57,7.44]